bitfinex-derivatives/quotes_SOLF0:USTF0_20250416
["timestamp","ask_amount","ask_price","bid_price","bid_amount"]
[1744829187523,42.88,127.4,127.33,10.71329372]
[1744829187718,1.43860365,127.39,127.34,48.43700305]
[1744829187916,42.88,127.43,127.38,10.71329372]
[1744829188119,42.88,127.43,127.4,10.71329372]
[1744829188523,42.93159655,127.43,127.42,10.71329372]
[1744829188723,50.77879655,127.43,127.42,10.71329372]
[1744829188922,50.77879655,127.43,127.4,0.05129752]
[1744829189124,0.05159655,127.43,127.42,10.71329372]
[1744829189832,50.7038,127.49,127.42,59.15029677]
[1744829190026,50.7038,127.49,127.47,10.71329372]
[1744829190325,42.86,127.49,127.47,10.71329372]
[1744829190521,42.86,127.49,127.42,48.43700305]
[1744829190720,42.86,127.49,127.43,7.8472]
[1744829190917,42.86,127.49,127.47,10.71329372]
[1744829191117,42.91832949,127.49,127.48,10.71329372]
[1744829191424,42.91832949,127.49,127.47,10.71329372]
[1744829191926,42.91832949,127.49,127.45,0.05509035]
[1744829192123,42.91832949,127.49,127.45,10.76838407]
[1744829192327,42.91832949,127.49,127.45,9.035e-05]
[1744829192328,48.43700305,127.47,127.45,9.035e-05]
[1744829192525,48.43700305,127.47,127.33,2.0134]
[1744829192727,48.43700305,127.43,127.38,10.71329372]
[1744829192923,7.8497,127.39,127.38,10.71329372]
[1744829193129,7.8497,127.39,127.35,2.1004]
[1744829193427,7.8497,127.39,127.38,10.71329372]
[1744829193629,7.8497,127.39,127.37,0.06041339]
[1744829193825,7.8497,127.39,127.38,10.71329372]
[1744829194026,7.8497,127.39,127.37,0.06041339]
[1744829194223,7.8497,127.39,127.38,10.71329372]
[1744829195132,0.05470686,127.4,127.37,0.06041339]
[1744829195631,7.8503,127.38,127.37,0.06041339]
[1744829195827,50.6903,127.38,127.37,1.339e-05]
[1744829196432,52.12898068,127.38,127.37,1.339e-05]
[1744829196632,59.98898068,127.38,127.37,1.339e-05]
[1744829196830,100.57568373,127.38,127.29,6.2932]
[1744829197033,48.43700305,127.35,127.29,12.79929372]
[1744829197233,42.84,127.34,127.29,12.79929372]
[1744829197729,42.84,127.34,127.32,10.71329372]
[1744829197933,42.84,127.34,127.29,2.086]
[1744829197934,565.44,127.42,127.34,10.71329372]
[1744829198135,565.44,127.42,127.38,10.71329372]
[1744829198334,565.44,127.42,127.37,10.71329372]
[1744829198533,565.44,127.42,127.35,10.71329372]
[1744829198731,1.43844264,127.41,127.35,10.71329372]
[1744829198932,0.05457738,127.39,127.37,10.77075576]
[1744829199138,7.8503,127.38,127.37,10.77075576]
[1744829199337,7.8503,127.38,127.37,0.05746204]
[1744829199636,56.29700305,127.38,127.29,2.086]
[1744829199836,48.43700305,127.35,127.3,10.71329372]
[1744829200132,7.8553,127.3,127.29,12.79929372]
[1744829200336,7.8553,127.3,127.29,2.086]
[1744829201236,7.8559,127.29,127.28,0.05314448]
[1744829201638,54.3359,127.29,127.28,0.05314448]
[1744829202137,2.1233,127.33,127.28,0.05314448]
[1744829202138,46.48,127.4,127.3,10.71329372]
[1744829202336,1.43881175,127.39,127.35,10.71329372]
[1744829202538,1.43881175,127.39,127.3,48.43700305]
[1744829202539,1.43881175,127.39,127.34,10.71329372]
[1744829202838,49.8758148,127.39,127.31,10.71329372]
[1744829203038,1.43881175,127.38,127.33,10.71329372]
[1744829203339,1.43881175,127.38,127.29,2.0096]
[1744829203340,0.05328419,127.37,127.36,10.71329372]
[1744829203738,0.05328419,127.37,127.35,0.05679224]
[1744829203939,0.05328419,127.37,127.36,10.71329372]
[1744829204735,46.48,127.4,127.36,10.71329372]
[1744829204936,46.48,127.4,127.39,10.71329372]
[1744829206438,46.48,127.44,127.4,10.71329372]
[1744829206639,46.48,127.47,127.45,10.71329372]
[1744829207238,46.48,127.47,127.37,48.43700305]
[1744829207436,0.05446738,127.43,127.41,10.7673853]
[1744829209140,0.05446738,127.43,127.41,0.05409158]
[1744829209641,7.8479,127.42,127.41,0.05409158]
[1744829210338,48.43700305,127.42,127.3,48.43700305]
[1744829210533,48.43700305,127.42,127.36,10.71329372]
[1744829211141,7.8505,127.38,127.36,10.71329372]
[1744829211337,46.46,127.39,127.36,10.76630452]
[1744829211535,0.04957089,127.4,127.39,10.71329372]
[1744829211838,46.46,127.43,127.39,10.71329372]
[1744829212040,46.46,127.43,127.42,10.71329372]
[1744829212440,46.46,127.43,127.41,10.71329372]
[1744829212836,7.8483,127.42,127.41,0.05954461]
[1744829213144,46.51198764,127.43,127.41,10.77283833]
[1744829213438,46.51198764,127.43,127.41,0.05954461]
[1744829213647,46.46,127.47,127.42,10.71329372]
[1744829213940,46.46,127.47,127.44,10.71329372]
[1744829214244,46.46,127.47,127.4,48.43700305]
[1744829214245,7.8482,127.42,127.37,14.0425]
[1744829214643,48.43700305,127.46,127.37,14.0425]
[1744829214844,0.05880169,127.41,127.38,0.05429551]
[1744829215042,0.05880169,127.41,127.38,0.05750653]
[1744829215543,0.05880169,127.41,127.39,48.43700305]
[1744829215844,46.46,127.47,127.38,0.05750653]
[1744829216035,46.46,127.47,127.37,54.62860305]
[1744829216241,46.46,127.47,127.39,48.43700305]
[1744829216443,7.8455,127.46,127.42,7.8474]
[1744829216643,0.05543746,127.45,127.43,0.05453375]
[1744829216947,7.90173746,127.45,127.43,0.05453375]
[1744829217739,0.05543746,127.45,127.44,7.8466]
[1744829217940,46.46,127.47,127.43,0.05453375]
[1744829218341,7.8459,127.46,127.43,0.05453375]
[1744829218940,0.05473652,127.46,127.43,0.05453375]
[1744829219738,46.46,127.47,127.43,0.05453375]
[1744829220745,46.46,127.47,127.44,7.8463]
[1744829220746,0.05583074,127.46,127.44,7.8463]
[1744829220941,39.8938,127.47,127.43,2.16213375]
[1744829221146,45.0,127.52,127.44,48.43700305]
[1744829221345,7.8445,127.48,127.45,7.8457]
[1744829221946,45.0,127.52,127.45,0.05195979]
[1744829222543,7.8454,127.46,127.45,0.05195979]
[1744829222740,45.0,127.48,127.45,0.05195979]
[1744829222937,7.8436,127.49,127.46,7.845]
[1744829223137,45.0,127.5,127.46,0.05187854]
[1744829224044,45.0,127.54,127.46,48.48888159]
[1744829224244,52.8407,127.54,127.51,7.8418]
[1744829224449,44.98,127.58,127.5,48.43700305]
[1744829224649,44.98,127.58,127.53,0.05994444]
[1744829224845,44.98,127.58,127.54,7.8405]
[1744829224846,7.8392,127.57,127.54,7.8405]
[1744829225045,44.98,127.58,127.54,7.8405]
[1744829225046,44.98,127.58,127.54,48.43700305]
[1744829225247,44.98,127.61,127.56,48.43700305]
[1744829225446,52.8165,127.61,127.58,7.8377]
[1744829225649,44.98,127.64,127.58,48.43700305]
[1744829225849,44.98,127.64,127.6,0.05657748]
[1744829226346,569.184,127.68,127.6,48.49358053]
[1744829226347,610.08,127.68,127.6,48.49358053]
[1744829226549,610.08,127.68,127.63,0.05943305]
[1744829226751,610.08,127.68,127.64,0.05120486]
[1744829227140,1.36385013,127.7,127.64,0.05120486]
[1744829227346,44.98,127.72,127.64,0.05120486]
[1744829227653,44.98,127.72,127.67,0.05797296]
[1744829228047,44.98,127.72,127.67,7.89027296]
[1744829228351,44.98,127.72,127.67,0.05797296]
[1744829229351,54.59220305,127.78,127.67,48.49497601]
[1744829229653,44.96,127.83,127.71,48.48750203]
[1744829229853,48.43700305,127.8,127.76,0.05330862]
[1744829230055,48.43700305,127.78,127.67,93.39700305]
[1744829230255,44.94,127.77,127.67,93.39700305]
[1744829230652,48.43700305,127.76,127.65,48.43700305]
[1744829231058,0.05173925,127.72,127.69,0.05110702]
[1744829231252,44.99173925,127.72,127.69,0.05234263]
[1744829231449,0.05173925,127.72,127.69,0.05234263]
[1744829231653,7.88123925,127.72,127.69,0.05234263]
[1744829232062,0.05173925,127.72,127.69,0.05234263]
[1744829232258,48.4887423,127.72,127.69,0.05234263]
[1744829232752,7.8306,127.7,127.69,0.05234263]
[1744829233559,0.05173925,127.72,127.69,0.05234263]
[1744829235561,0.05173925,127.72,127.69,7.88354263]
[1744829235757,0.05173925,127.72,127.69,0.05234263]
[1744829236458,7.8305,127.71,127.69,0.05234263]
[1744829236758,0.05173925,127.72,127.69,0.05234263]
[1744829237160,7.8306,127.7,127.69,0.05234263]
[1744829237359,0.05173925,127.72,127.69,0.05234263]
[1744829237660,7.88133925,127.72,127.69,0.05234263]
[1744829237961,0.05173925,127.72,127.69,0.05234263]
[1744829238157,7.8305,127.71,127.69,0.05234263]
[1744829238358,0.05173925,127.72,127.69,0.05234263]
[1744829240165,366.6272008,127.7,127.69,0.05234263]
[1744829240564,366.6272008,127.7,127.62,4.226]
[1744829240762,44.92,127.69,127.62,4.226]
[1744829241266,44.92,127.69,127.59,413.43700305]
[1744829241461,7.8331,127.66,127.62,7.8354]
[1744829241762,0.05907194,127.65,127.63,48.49672283]
[1744829242066,0.05907194,127.65,127.64,7.8343]
[1744829242767,0.05907194,127.65,127.63,0.05971978]
[1744829242961,44.97907194,127.65,127.63,0.05971978]
[1744829243364,7.8343,127.64,127.63,0.05971978]
[1744829244462,52.81307194,127.65,127.63,0.05971978]
[1744829244657,44.97907194,127.65,127.63,0.05971978]
[1744829244859,0.05907194,127.65,127.63,0.05971978]
[1744829245164,44.92,127.73,127.64,48.43700305]
[1744829245360,7.8301,127.71,127.67,7.8322]
[1744829245565,44.92,127.73,127.64,48.43700305]
[1744829246068,7.87600994,127.7,127.67,0.04951516]
[1744829246268,0.04500994,127.7,127.67,0.04951516]
[1744829246463,0.04500994,127.7,127.67,2.07341516]
[1744829246769,0.04500994,127.7,127.68,7.8319]
[1744829247570,0.04500994,127.7,127.68,48.43700305]
[1744829247770,7.8284,127.74,127.68,48.43700305]
[1744829247975,44.92,127.77,127.7,7.8303]
[1744829248171,44.92,127.77,127.7,48.43700305]
[1744829248768,44.92,127.77,127.72,0.05214573]
[1744829249072,7.8279,127.75,127.72,0.05214573]
[1744829249270,44.92,127.77,127.72,0.05214573]
[1744829249571,7.8276,127.75,127.72,0.05214573]
[1744829249963,44.92,127.77,127.72,48.48914878]
[1744829250364,44.92,127.77,127.72,0.05214573]
[1744829250870,44.92,127.77,127.72,48.48914878]
[1744829251268,44.92,127.77,127.72,0.05214573]
[1744829251670,7.8273,127.76,127.72,0.05214573]
[1744829251871,44.92,127.77,127.72,0.05214573]
[1744829252373,7.8277,127.75,127.72,7.88124573]
[1744829253174,7.8271,127.76,127.73,7.8288]
[1744829253370,44.92,127.77,127.73,7.8288]
[1744829253673,44.92,127.77,127.72,48.48914878]
[1744829253872,44.92,127.77,127.72,0.05214573]
[1744829254572,7.8284,127.74,127.72,0.05214573]
[1744829254771,44.92,127.77,127.72,0.05214573]
[1744829254975,7.8282,127.74,127.72,0.05214573]
[1744829255468,7.8288,127.73,127.72,0.05214573]
[1744829256566,44.92,127.77,127.72,0.05214573]
[1744829256975,44.92,127.77,127.72,48.48914878]
[1744829257375,44.92,127.77,127.74,7.8277]
[1744829257675,52.7468,127.77,127.72,48.48914878]
[1744829257871,52.7468,127.77,127.74,7.8279]
[1744829258175,44.92,127.77,127.72,48.48914878]
[1744829258579,52.7465,127.77,127.74,7.828]
[1744829259079,44.92,127.77,127.75,7.8272]
[1744829259280,44.92,127.77,127.75,0.05223122]
[1744829259480,48.0413,127.81,127.75,0.05223122]
[1744829259676,7.8255,127.79,127.76,7.8267]
[1744829259870,48.0413,127.81,127.75,0.05223122]
[1744829260078,48.0413,127.81,127.75,7.87973122]
[1744829260274,45.9463,127.81,127.75,0.05223122]
[1744829260479,43.76,127.81,127.75,0.05223122]
[1744829260674,92.19700305,127.81,127.75,0.05223122]
[1744829260880,48.43700305,127.79,127.68,52.65870305]
[1744829261076,2.0112,127.78,127.68,52.65870305]
[1744829261380,43.74,127.77,127.68,52.65870305]
[1744829261780,7.8279,127.75,127.68,52.65870305]
[1744829261982,0.05136143,127.73,127.7,0.05110867]
[1744829262480,0.05136143,127.73,127.71,7.8297]
[1744829262679,0.05136143,127.73,127.7,0.05110867]
[1744829262875,0.05136143,127.73,127.72,7.8294]
[1744829263681,0.05136143,127.73,127.72,56.26640305]
[1744829264083,0.05136143,127.73,127.72,7.8294]
[1744829264478,0.05136143,127.73,127.71,7.83]
[1744829264675,0.05136143,127.73,127.7,0.05110867]
[1744829264876,7.8298,127.72,127.7,0.05110867]
[1744829265179,0.05136143,127.73,127.7,0.05110867]
[1744829265381,7.8298,127.72,127.7,0.05110867]
[1744829265581,0.05136143,127.73,127.7,0.05110867]
[1744829265885,7.83,127.72,127.7,0.05110867]
[1744829266280,43.79136143,127.73,127.7,0.05110867]
[1744829267480,7.8299,127.72,127.7,0.05110867]
[1744829268285,43.79136143,127.73,127.7,0.05110867]
[1744829268986,7.8298,127.72,127.7,0.05110867]
[1744829269784,51.62046143,127.73,127.7,0.05110867]
[1744829269977,43.79136143,127.73,127.7,0.05110867]
[1744829270177,43.79136143,127.73,127.57,23.5149]
[1744829270178,7.8325,127.67,127.57,23.5149]
[1744829270382,43.76,127.67,127.61,48.43700305]
[1744829270885,43.76,127.67,127.64,7.8339]
[1744829271187,43.81640939,127.67,127.64,7.88973275]
[1744829271587,43.81640939,127.67,127.64,0.05583275]
[1744829271986,43.81640939,127.67,127.58,6.0617]
[1744829272183,2.1669,127.66,127.58,6.0617]
[1744829272584,7.8355,127.63,127.59,7.8369]
[1744829272782,43.76,127.62,127.55,48.43700305]
[1744829272988,43.76,127.62,127.52,50.58010305]
[1744829273188,7.8374,127.59,127.57,0.05882011]
[1744829273389,0.05177842,127.6,127.57,0.05882011]
[1744829273790,0.05177842,127.6,127.58,7.8377]
[1744829274183,7.88867842,127.6,127.57,7.89712011]
[1744829274383,0.05177842,127.6,127.57,0.05882011]
[1744829274789,7.838,127.58,127.57,0.05882011]
[1744829274989,0.05177842,127.6,127.57,0.05882011]
[1744829275388,7.8378,127.59,127.57,0.05882011]
[1744829275587,0.05177842,127.6,127.57,0.05882011]
[1744829275891,7.88887842,127.6,127.57,0.05882011]
[1744829276287,0.05177842,127.6,127.57,0.05882011]
[1744829276490,7.838,127.58,127.57,0.05882011]
[1744829277189,0.05177842,127.6,127.57,0.05882011]
[1744829277887,7.838,127.58,127.57,0.05882011]
[1744829278288,42.76,127.58,127.51,369.0985]
[1744829278485,42.76,127.58,127.48,93.33380305]
[1744829278686,42.76,127.58,127.5,48.43700305]
[1744829278890,563.92,127.68,127.56,48.43700305]
[1744829279095,4.1606,127.64,127.54,48.43700305]
[1744829279292,7.8374,127.59,127.58,0.05515614]
[1744829279691,0.05459945,127.6,127.58,0.05515614]
[1744829279894,7.8374,127.59,127.58,0.05515614]
[1744829280195,0.05459945,127.6,127.58,0.05515614]
[1744829282802,0.05459945,127.6,127.59,7.8374]
[1744829282993,44.7708,127.67,127.59,29.7197942]
[1744829283197,44.7708,127.67,127.61,29.7197942]
[1744829283699,42.76,127.67,127.61,29.7197942]
[1744829283892,29.77509075,127.65,127.51,42.76]
[1744829284093,29.7197942,127.65,127.53,29.7197942]
[1744829284294,7.8359,127.62,127.53,29.7197942]
[1744829284498,42.76,127.63,127.53,29.7197942]
[1744829284801,7.8365,127.61,127.56,7.8388]
[1744829285098,0.04992125,127.6,127.57,0.05114121]
[1744829285992,0.04992125,127.6,127.57,29.77093541]
[1744829286189,565.2840907,127.68,127.61,29.7197942]
[1744829286392,563.92,127.68,127.61,29.7197942]
[1744829286990,7.8369,127.6,127.58,6.2359]
[1744829287200,0.05776973,127.6,127.58,0.05810496]
[1744829287495,7.8341,127.65,127.59,29.7197942]
[1744829287699,42.76,127.67,127.59,29.7197942]
[1744829288399,42.76,127.67,127.61,29.7197942]
[1744829288602,0.05393721,127.65,127.63,0.0501677]
[1744829289202,7.88793721,127.65,127.63,0.0501677]
[1744829289802,7.8343,127.64,127.63,0.0501677]
[1744829291103,0.05393721,127.65,127.63,0.0501677]
[1744829292002,7.88793721,127.65,127.63,0.0501677]
[1744829292499,7.8343,127.64,127.63,0.0501677]
[1744829292802,0.05393721,127.65,127.57,29.7197942]
[1744829293006,29.7197942,127.66,127.56,6.0774]
[1744829293303,44.12398377,127.67,127.59,29.7197942]
[1744829293602,42.76,127.67,127.59,29.7197942]
[1744829293806,0.05040795,127.64,127.62,0.0558481]
[1744829293997,0.05040795,127.64,127.53,29.7197942]
[1744829293998,72.4797942,127.63,127.53,29.7197942]
[1744829294200,1.9995,127.62,127.54,7.84]
[1744829294400,29.7197942,127.61,127.51,78.5856942]
[1744829294599,29.7197942,127.61,127.51,76.5477942]
[1744829294806,29.7197942,127.61,127.54,7.84]
[1744829295005,0.05277693,127.59,127.56,0.0514457]
[1744829295198,42.81277693,127.59,127.56,0.0514457]
[1744829295400,7.8383,127.58,127.56,0.0514457]
[1744829295705,42.81277693,127.59,127.56,0.0514457]
[1744829295906,0.05277693,127.59,127.56,0.0514457]
[1744829296103,7.89047693,127.59,127.56,7.8904457]
[1744829297106,7.8382,127.58,127.56,0.0514457]
[1744829297409,0.05277693,127.59,127.56,0.0514457]
[1744829299110,7.8386,127.57,127.56,0.0514457]
[1744829301913,42.76,127.58,127.5,374.8806]
[1744829302110,42.76,127.58,127.5,9.8806]
[1744829302408,29.7197942,127.53,127.45,7.8457]
[1744829302612,29.7197942,127.55,127.41,4.1523]
[1744829302613,29.7197942,127.51,127.41,4.1523]
[1744829302808,29.7197942,127.51,127.45,0.05286819]
[1744829302809,0.05898527,127.47,127.45,0.05286819]
[1744829303415,7.8454,127.46,127.45,0.05286819]
[1744829304615,7.8454,127.46,127.37,4.1523]
[1744829304616,29.77877947,127.47,127.37,4.1523]
[1744829304813,29.7197942,127.47,127.37,4.1523]
[1744829305414,29.7197942,127.43,127.34,35.57277184]
[1744829305615,7.85,127.39,127.34,43.42537184]
[1744829305812,42.78,127.42,127.34,43.42537184]
[1744829305813,0.05712412,127.4,127.37,0.05920616]
[1744829307518,0.05712412,127.4,127.37,7.90950616]
[1744829307716,0.05712412,127.4,127.38,29.7197942]
[1744829307917,42.78,127.45,127.38,31.8540942]
[1744829308114,607.36,127.48,127.44,7.8463]
[1744829308719,7.8454,127.46,127.43,7.8469]
[1744829309017,7.8454,127.46,127.45,0.05724906]
[1744829309615,7.8477,127.43,127.39,2.145]
[1744829309814,7.8477,127.43,127.4,7.8489]
[1744829310014,42.76,127.44,127.39,2.145]
[1744829310420,42.76,127.47,127.43,7.8472]
[1744829310720,0.0511407,127.46,127.44,0.05587447]
[1744829310920,0.0511407,127.46,127.45,7.846]
[1744829311120,0.0511407,127.46,127.44,0.05587447]
[1744829312923,0.0511407,127.46,127.44,7.90247447]
[1744829313222,7.8967407,127.46,127.44,0.05587447]
[1744829313521,0.0511407,127.46,127.44,0.05587447]
[1744829314125,0.0511407,127.46,127.45,7.846]
[1744829314325,0.0511407,127.46,127.44,0.05587447]
[1744829315225,0.0511407,127.46,127.44,7.90217447]
[1744829315425,0.0511407,127.46,127.44,0.05587447]
[1744829316017,42.78,127.62,127.45,42.78]
[1744829316225,54.72581529,127.6,127.48,48.38751529]
[1744829316425,1.43638341,127.59,127.48,48.38751529]
[1744829316624,7.8397,127.56,127.52,7.8414]
[1744829317025,0.0578489,127.55,127.53,0.05446226]
[1744829317924,7.8405,127.54,127.53,0.05446226]
[1744829318130,56.28536419,127.55,127.46,2.0435]
[1744829318425,7.8432,127.5,127.46,7.8449]
[1744829318823,7.8432,127.5,127.43,2.1679]
[1744829319027,42.78,127.51,127.44,48.38751529]
[1744829319225,0.05155841,127.49,127.46,0.05963096]
[1744829319421,42.78,127.51,127.46,0.05963096]
[1744829319422,42.78,127.54,127.53,7.8411]
[1744829319822,42.78,127.57,127.53,7.8411]
[1744829320024,42.78,127.57,127.48,48.38751529]
[1744829320222,42.78,127.57,127.5,48.38751529]
[1744829320627,0.05457891,127.55,127.52,0.05827821]
[1744829321326,0.05457891,127.55,127.52,48.4457935]
[1744829322024,7.8362,127.61,127.54,48.38751529]
[1744829322229,42.76,127.63,127.56,48.38751529]
[1744829322621,7.836,127.62,127.59,7.8371]
[1744829322826,46.9857,127.66,127.58,48.38751529]
[1744829323327,1.36395704,127.69,127.62,48.38751529]
[1744829323522,655.94751529,127.7,127.59,4.1403]
[1744829323729,48.38751529,127.68,127.59,4.1403]
[1744829324125,7.8316,127.69,127.65,7.8334]
[1744829324429,0.05834946,127.68,127.66,0.05374884]
[1744829325225,7.89044946,127.68,127.66,0.05374884]
[1744829325529,0.05834946,127.68,127.66,0.05374884]
[1744829326025,7.8325,127.67,127.66,0.05374884]
[1744829326224,7.8325,127.67,127.62,7.8352]
[1744829326728,0.05834946,127.68,127.61,7.8359]
[1744829326928,655.94751529,127.7,127.6,50.43331529]
[1744829327232,0.05957671,127.66,127.64,0.05717586]
[1744829327731,7.8337,127.65,127.64,0.05717586]
[1744829328027,91.187092,127.66,127.56,413.38751529]
[1744829328223,91.12751529,127.66,127.55,4.253]
[1744829328422,48.38751529,127.64,127.55,4.253]
[1744829328623,48.38751529,127.64,127.55,2.136]
[1744829328921,48.38751529,127.64,127.58,0.04961428]
[1744829329120,0.05501008,127.61,127.58,0.04961428]
[1744829329330,42.79501008,127.61,127.58,0.04961428]
[1744829329529,7.8374,127.59,127.58,0.04961428]
[1744829330731,7.837,127.6,127.58,0.04961428]
[1744829332131,7.8374,127.59,127.58,0.04961428]
[1744829332333,42.79501008,127.61,127.58,0.04961428]
[1744829333421,0.05501008,127.61,127.58,48.43712957]
[1744829333827,0.05501008,127.61,127.6,7.8368]
[1744829334127,42.74,127.65,127.59,1.9849]
[1744829334329,7.8343,127.64,127.6,7.8365]
[1744829335029,42.74,127.68,127.6,48.38751529]
[1744829335225,0.0525809,127.65,127.63,0.05937823]
[1744829336031,7.8867809,127.65,127.63,0.05937823]
[1744829336334,0.0525809,127.65,127.63,0.05937823]
[1744829336733,7.8343,127.64,127.63,0.05937823]
[1744829337330,7.8865809,127.65,127.63,0.05937823]
[1744829337535,42.74,127.72,127.64,48.38751529]
[1744829338732,48.4411744,127.69,127.67,5.546e-05]
[1744829338934,50.5119,127.68,127.67,5.546e-05]
[1744829339333,52.6344,127.68,127.67,5.546e-05]
[1744829339933,62.4988,127.68,127.67,5.546e-05]
[1744829340133,7.8357,127.62,127.58,7.8377]
[1744829340334,91.06751529,127.64,127.53,48.38751529]
[1744829341030,48.38751529,127.62,127.52,4.1447]
[1744829341236,0.05977796,127.58,127.56,0.05959538]
[1744829341434,7.8404,127.55,127.51,7.8421]
[1744829341633,0.0597708,127.54,127.52,0.05204238]
[1744829342033,7.8411,127.53,127.52,0.05204238]
[1744829342335,0.0597708,127.54,127.45,91.06751529]
[1744829342532,42.68,127.54,127.45,91.06751529]
[1744829343128,91.06751529,127.54,127.45,42.68]
[1744829343332,91.06751529,127.54,127.44,6.3341]
[1744829343532,0.05915713,127.51,127.48,0.05432261]
[1744829344237,0.05915713,127.51,127.5,7.8429]
[1744829344536,42.68,127.57,127.49,48.38751529]
[1744829344729,7.8396,127.56,127.52,7.8412]
[1744829345335,50.5188,127.57,127.53,7.8405]
[1744829345536,0.05411418,127.55,127.53,0.04960595]
[1744829345836,7.8405,127.54,127.53,0.04960595]
[1744829346940,7.89431418,127.55,127.53,0.04960595]
[1744829347736,7.8405,127.54,127.53,0.04960595]
[1744829348040,48.38751529,127.51,127.39,407.7]
[1744829348240,7.8451,127.47,127.43,7.8469]
[1744829348933,0.05235187,127.46,127.44,0.05729022]
[1744829349539,50.546,127.45,127.44,0.05729022]
[1744829350143,42.7,127.45,127.44,0.05729022]
[1744829350835,0.05235187,127.46,127.44,0.05729022]
[1744829351037,48.38751529,127.57,127.49,7.8433]
[1744829351342,42.7,127.56,127.47,48.38751529]
[1744829351641,42.7,127.56,127.51,7.8423]
[1744829351833,7.84,127.55,127.49,48.38751529]
[1744829352032,7.84,127.55,127.51,0.05858053]
[1744829352236,0.05286184,127.53,127.51,7.90038053]
[1744829352638,0.05286184,127.53,127.51,48.44609582]
[1744829352845,0.05286184,127.53,127.51,0.05858053]
[1744829353342,42.7,127.52,127.51,0.05858053]
[1744829353647,50.5417,127.52,127.51,0.05858053]
[1744829353945,50.54,127.52,127.41,2.169]
[1744829354146,7.847,127.44,127.41,2.169]
[1744829354345,7.847,127.44,127.4,7.8488]
[1744829354750,42.7,127.46,127.42,7.8475]
[1744829354947,42.7,127.49,127.41,48.43924563]
[1744829355244,568.9995,127.51,127.43,48.38751529]
[1744829355444,564.7,127.51,127.45,48.38751529]
[1744829355748,564.7,127.51,127.46,7.8451]
[1744829355949,564.7,127.51,127.43,48.38751529]
[1744829356153,564.7,127.51,127.46,0.05083917]
[1744829356154,0.05092614,127.48,127.46,0.05083917]
[1744829356845,7.8448,127.47,127.46,0.05083917]
[1744829357249,0.05092614,127.48,127.46,0.05083917]
[1744829358043,0.05092614,127.48,127.47,7.8448]
[1744829359148,44.8118,127.56,127.47,48.38751529]
[1744829359451,44.8118,127.56,127.49,48.38751529]
[1744829359646,7.8419,127.52,127.49,7.8432]
[1744829359846,44.8118,127.56,127.47,52.50251529]
[1744829360043,42.72,127.59,127.49,48.38751529]
[1744829360240,0.05346641,127.55,127.53,7.8407]
[1744829360446,0.05346641,127.55,127.53,0.05949373]
[1744829360746,7.8405,127.54,127.53,0.05949373]
[1744829360947,0.05346641,127.55,127.53,0.05949373]
[1744829361143,42.77346641,127.55,127.53,0.05949373]
[1744829361345,7.8405,127.54,127.53,0.05949373]
[1744829362146,7.8405,127.54,127.53,0.00247593]
[1744829363046,50.61366641,127.55,127.53,0.00247593]
[1744829363747,7.8405,127.54,127.53,0.00247593]
[1744829363944,42.77346641,127.55,127.53,0.00247593]
[1744829364653,0.05346641,127.55,127.53,0.00247593]
[1744829364948,977.16751529,127.63,127.54,48.38751529]
[1744829364949,46.8981,127.62,127.54,48.38751529]
[1744829365152,46.8981,127.62,127.55,2.0711]
[1744829365346,46.8981,127.62,127.54,52.47281529]
[1744829365747,46.8981,127.62,127.56,7.8389]
[1744829366051,7.838,127.58,127.57,0.05497661]
[1744829366242,0.05023632,127.59,127.57,0.05497661]
[1744829367143,0.05023632,127.59,127.57,7.89337661]
[1744829367347,0.05023632,127.59,127.57,0.05497661]
[1744829367751,7.838,127.58,127.57,0.05497661]
[1744829368252,7.8408,127.54,127.51,9.9131]
[1744829368751,42.7,127.58,127.51,2.0711]
[1744829369051,42.7,127.58,127.53,7.841]
[1744829369252,0.05344377,127.57,127.54,0.05878425]
[1744829369553,42.64,127.61,127.54,0.05878425]
[1744829369757,42.64,127.61,127.54,48.38751529]
[1744829370052,42.64,127.61,127.56,48.38751529]
[1744829370351,7.8365,127.61,127.58,7.8375]
[1744829370652,0.05030903,127.6,127.58,7.8375]
[1744829370855,0.05030903,127.6,127.57,0.05411654]
[1744829371049,0.05030903,127.6,127.58,7.838]